bitfinex-derivatives/quotes_BTCF0:USTF0_20250814
["timestamp","ask_amount","ask_price","bid_price","bid_amount"]
[1755181817842,0.15619,118830.0,118820.0,1.4188753]
[1755181818043,0.4725219,118840.0,118830.0,0.14385]
[1755181818342,0.8333219,118840.0,118830.0,0.14385]
[1755181818645,0.3043024,118830.0,118820.0,1.0155953]
[1755181818830,0.6651024,118830.0,118820.0,1.0155953]
[1755181819235,0.6651024,118830.0,118820.0,1.0125953]
[1755181819434,1.36707031,118830.0,118820.0,0.9142253]
[1755181819941,1.36707031,118830.0,118820.0,0.98237232]
[1755181820330,1.36787031,118830.0,118820.0,0.0091453]
[1755181820531,1.36787031,118830.0,118820.0,0.001]
[1755181821037,1.36707031,118830.0,118820.0,0.001]
[1755181821234,0.6651024,118830.0,118820.0,0.09937]
[1755181821545,0.6651024,118830.0,118820.0,0.14485]
[1755181821546,0.3043024,118830.0,118820.0,0.14485]
[1755181821845,0.6651024,118830.0,118820.0,0.14485]
[1755181822641,0.6651024,118830.0,118820.0,0.02822]
[1755181822839,1.36707031,118830.0,118820.0,0.001]
[1755181823239,0.6651024,118830.0,118820.0,0.001]
[1755181823542,0.6651024,118830.0,118820.0,0.00926741]
[1755181823843,1.36707031,118830.0,118820.0,0.06995708]
[1755181824045,0.6651024,118830.0,118820.0,0.001]
[1755181824437,0.6651024,118830.0,118820.0,0.0091938]
[1755181824636,0.6651024,118830.0,118820.0,0.001]
[1755181825043,1.36707031,118830.0,118820.0,0.02822]
[1755181825248,0.6651024,118830.0,118820.0,0.14648]
[1755181825945,0.6651024,118830.0,118820.0,0.09674]
[1755181826149,0.6651024,118830.0,118820.0,0.10511441]
[1755181826646,0.6651024,118830.0,118820.0,0.03659441]
[1755181827639,0.6651024,118830.0,118820.0,0.10339153]
[1755181828037,0.3043024,118830.0,118820.0,0.22472153]
[1755181828238,0.3043024,118830.0,118820.0,0.14060153]
[1755181828533,0.6651024,118830.0,118820.0,0.22472153]
[1755181828732,0.3043024,118830.0,118820.0,0.22472153]
[1755181828940,0.13231,118850.0,118830.0,0.3372389]
[1755181829149,0.3608,118860.0,118850.0,0.1791588]
[1755181829343,0.4448847,118870.0,118860.0,0.1791517]
[1755181829645,0.3608,118880.0,118870.0,0.1791446]
[1755181829949,0.38440513,118880.0,118870.0,0.1791446]
[1755181830648,0.02360513,118880.0,118870.0,0.1791446]
[1755181830849,0.3608,118890.0,118880.0,0.1710275]
[1755181831039,0.02360392,118890.0,118880.0,1.6070081]
[1755181831240,0.02360392,118890.0,118880.0,2.30977601]
[1755181831550,0.2163666,118910.0,118900.0,0.1791233]
[1755181831747,0.23998159,118910.0,118900.0,1.0790433]
[1755181832850,0.23998159,118910.0,118900.0,1.14759772]
[1755181834052,0.24098159,118910.0,118900.0,1.14759772]
[1755181834246,0.02461499,118910.0,118900.0,1.14759772]
[1755181834447,0.06927499,118910.0,118900.0,1.50839772]
[1755181834651,0.11735499,118910.0,118900.0,1.50839772]
[1755181835650,0.20141119,118910.0,118900.0,1.50839772]
[1755181835853,0.20141119,118910.0,118900.0,0.60847772]
[1755181836149,1.3037491,118910.0,118900.0,0.96495442]
[1755181836552,1.3045491,118910.0,118900.0,0.06855442]
[1755181836747,0.2163732,118900.0,118890.0,0.9804303]
[1755181836954,0.23998819,118900.0,118890.0,0.1791303]
[1755181837152,0.1717203,118890.0,118880.0,0.00834251]
[1755181837342,1.3027632,118890.0,118880.0,0.89596]
[1755181837545,0.2163944,118870.0,118860.0,0.1791469]
[1755181837746,0.60083685,118870.0,118860.0,0.99078]
[1755181837948,0.60083685,118870.0,118860.0,1.0748715]
[1755181838151,0.24003685,118870.0,118860.0,1.08304357]
[1755181838654,0.60083685,118870.0,118860.0,0.99895207]
[1755181838948,1.30360476,118870.0,118860.0,0.97457921]
[1755181839352,0.60083685,118870.0,118860.0,1.15373071]
[1755181839552,0.46852685,118870.0,118860.0,1.15373071]
[1755181839749,0.15238685,118870.0,118860.0,0.25801071]
[1755181840052,0.20046685,118870.0,118860.0,0.25801071]
[1755181840253,0.20046685,118870.0,118860.0,1.15373071]
[1755181840455,0.20046685,118870.0,118860.0,1.15333071]
[1755181840756,0.02364245,118870.0,118860.0,1.15133071]
[1755181840955,0.02364245,118870.0,118860.0,1.51213071]
[1755181841156,0.02364072,118870.0,118860.0,1.68030901]
[1755181841544,0.7453373,118890.0,118870.0,0.2522483]
[1755181841749,0.76897802,118890.0,118880.0,1.0737372]
[1755181842150,0.60082522,118890.0,118880.0,1.0737372]
[1755181842452,0.02364072,118890.0,118880.0,1.4345372]
[1755181842951,0.10771122,118890.0,118880.0,0.5399372]
[1755181843154,0.24002122,118890.0,118880.0,1.0725372]
[1755181843349,0.24002122,118890.0,118880.0,1.4333372]
[1755181844359,0.94198913,118890.0,118880.0,1.0713375]
[1755181844653,0.3845532,118880.0,118870.0,0.09506]
[1755181844850,0.40819392,118880.0,118870.0,1.0713846]
[1755181845052,0.40819392,118880.0,118870.0,0.9873]
[1755181845449,0.40819392,118880.0,118870.0,1.0713846]
[1755181845646,0.40819392,118880.0,118870.0,0.9873]
[1755181845850,1.47096183,118880.0,118870.0,0.89524]
[1755181846457,1.47096183,118880.0,118870.0,0.89532]
[1755181846855,1.47096183,118880.0,118870.0,0.9794046]
[1755181847155,0.06830072,118880.0,118870.0,1.0744646]
[1755181847355,0.10771822,118880.0,118870.0,1.4352646]
[1755181847657,0.10771822,118880.0,118870.0,1.0744646]
[1755181848055,0.20045822,118880.0,118870.0,0.5429446]
[1755181848264,0.24002822,118880.0,118870.0,1.0747846]
[1755181848457,0.24002822,118880.0,118870.0,0.09506]
[1755181848659,0.24002822,118880.0,118870.0,0.001]
[1755181848854,0.94199613,118880.0,118870.0,1.0271846]
[1755181849054,0.94199613,118880.0,118870.0,1.0725046]
[1755181849256,0.24002822,118880.0,118870.0,1.0735046]
[1755181849557,0.24002822,118880.0,118870.0,0.9784446]
[1755181849958,0.24002822,118880.0,118870.0,1.0735046]
[1755181850151,0.20045822,118880.0,118870.0,1.0735046]
[1755181850357,0.10771812,118880.0,118870.0,1.0735046]
[1755181850553,0.02364072,118880.0,118870.0,1.77627251]
[1755181850762,0.4448705,118890.0,118880.0,0.1338174]
[1755181850763,0.3608,118890.0,118880.0,0.1338174]
[1755181851068,0.02382726,118890.0,118880.0,0.4954174]
[1755181851262,0.02282726,118890.0,118880.0,1.24270531]
[1755181851564,0.7897238,118930.0,118910.0,0.2521686]
[1755181851862,0.8292938,118930.0,118920.0,0.98983]
[1755181852056,0.8292938,118930.0,118920.0,1.0738791]
[1755181853168,0.3608,118930.0,118920.0,1.14917606]
[1755181853351,0.8017691,118940.0,118930.0,0.0840419]
[1755181853550,0.7897048,118940.0,118930.0,0.1709919]
[1755181853761,0.8292748,118940.0,118930.0,0.1709919]
[1755181853964,0.745233,118940.0,118930.0,0.1699919]
[1755181854472,0.8020732,118950.0,118940.0,0.1711649]
[1755181854653,0.6578948,118950.0,118940.0,1.0733249]
[1755181854853,0.48983,118950.0,118940.0,1.0733249]
[1755181855163,0.5738578,118950.0,118940.0,1.0733249]
[1755181855357,0.48983,118950.0,118940.0,1.0733249]
[1755181855668,0.45262,118950.0,118940.0,1.0733249]
[1755181855862,0.04471,118950.0,118940.0,1.0733249]
[1755181856264,0.1758478,118950.0,118940.0,1.0733249]
[1755181857568,1.27582571,118950.0,118940.0,1.0733249]
[1755181857959,0.45262,118970.0,118950.0,0.2992937]
[1755181858270,0.5366337,118970.0,118960.0,1.0731108]
[1755181858660,1.27581161,118970.0,118960.0,1.0731108]
[1755181858861,0.5738437,118970.0,118960.0,1.0731108]
[1755181859061,1.27581161,118970.0,118960.0,1.0731108]
[1755181859261,0.5738437,118970.0,118960.0,1.0731108]
[1755181859869,1.27581161,118970.0,118960.0,1.0731108]
[1755181860167,1.27581161,118970.0,118950.0,0.5288459]
[1755181860471,0.213051,118960.0,118950.0,0.3392037]
[1755181860667,0.91501891,118960.0,118950.0,1.1929837]
[1755181860866,0.381106,118960.0,118950.0,1.0719981]
[1755181861170,0.2598679,118960.0,118950.0,1.0719981]
[1755181861360,0.1680663,118950.0,118930.0,0.700046]
[1755181861559,0.1680663,118950.0,118940.0,1.0732052]
[1755181861560,0.2598863,118950.0,118940.0,1.0732052]
[1755181861765,0.1758481,118950.0,118940.0,1.0732052]
[1755181862067,1.03596511,118960.0,118940.0,1.6020713]
[1755181862268,1.08307511,118960.0,118950.0,0.1711581]
[1755181862565,1.44387511,118960.0,118950.0,0.08713]
[1755181862964,1.44387511,118960.0,118940.0,1.2412713]
[1755181862965,0.0840281,118950.0,118940.0,1.2412713]
[1755181863270,0.084021,118960.0,118950.0,0.3361029]
[1755181863574,0.10757454,118960.0,118950.0,0.3361029]
[1755181863963,0.02355354,118960.0,118950.0,1.65492881]
[1755181864469,0.02355354,118960.0,118950.0,0.9529609]
[1755181864660,0.0001,118980.0,118970.0,0.084014]
[1755181864864,0.0001,118980.0,118970.0,1.437144]
[1755181865064,0.0001,118980.0,118970.0,2.13911191]
[1755181865271,0.0001,118980.0,118970.0,2.937144]
[1755181865567,0.0601443,119000.0,118990.0,0.1711299]
[1755181865766,0.09182,119010.0,119000.0,0.1711228]
[1755181865961,0.28836491,119020.0,119010.0,0.1711158]
[1755181866265,0.95312282,119020.0,119010.0,1.02960073]
[1755181866566,0.99033282,119020.0,119010.0,1.0350858]
[1755181866772,0.28836491,119020.0,119010.0,1.04321976]
[1755181867068,0.28836491,119020.0,119010.0,0.91201366]
[1755181867364,0.5738087,119020.0,119010.0,0.99599976]
[1755181867571,1.27577661,119020.0,119010.0,0.99599976]
[1755181867769,1.27577661,119020.0,119010.0,0.91201366]
[1755181868066,0.2130161,119010.0,119000.0,0.99389]
[1755181868268,0.63397735,119010.0,119000.0,0.94667]
[1755181868466,0.2130302,118990.0,118980.0,0.1711338]
[1755181868767,0.04711,118990.0,118980.0,1.0788538]
[1755181868971,0.0839932,119000.0,118990.0,0.1711302]
[1755181869167,0.0839932,119000.0,118990.0,0.3391306]
[1755181869367,1.14313076,119010.0,119000.0,0.1239032]
[1755181869569,1.14313076,119010.0,119000.0,1.0787232]
[1755181869774,1.14313076,119010.0,119000.0,0.99473]
[1755181870268,0.1758202,118990.0,118980.0,0.05527556]
[1755181870468,1.27579811,118990.0,118980.0,0.98250136]
[1755181870665,0.2130302,118990.0,118980.0,0.07458136]
[1755181870870,1.27579811,118990.0,118980.0,0.90792]
[1755181871076,0.1758202,118990.0,118980.0,1.09219464]
[1755181871270,0.1758202,118990.0,118980.0,1.45299464]
[1755181871466,0.1311102,118990.0,118980.0,1.45299464]
[1755181871666,0.0840004,118990.0,118980.0,0.67317504]
[1755181871866,0.2130304,118990.0,118980.0,0.96807724]
[1755181872068,0.2130304,118990.0,118980.0,0.92053724]
[1755181872069,1.27579831,118990.0,118980.0,0.92053724]
[1755181872268,1.27579831,118990.0,118980.0,1.01316223]
[1755181872572,1.27659831,118990.0,118980.0,0.01313724]
[1755181872777,0.5746304,118990.0,118980.0,0.92161724]
[1755181872973,0.5738304,118990.0,118980.0,0.92161724]
[1755181873272,0.5738304,118990.0,118980.0,1.00562454]
[1755181873273,0.4448004,118990.0,118980.0,1.00562454]
[1755181873465,0.6967931,119000.0,118980.0,1.68994528]
[1755181873664,0.6967931,119000.0,118990.0,0.1711302]
[1755181873665,0.45262,119000.0,118990.0,0.1711302]
[1755181873969,0.3608,119000.0,118990.0,0.88623535]
[1755181874171,0.45262,119020.0,119010.0,0.1312061]
[1755181874470,0.04711,119020.0,119010.0,1.09524861]
[1755181874676,0.573802,119030.0,119020.0,0.1238891]
[1755181874878,0.0839791,119020.0,119010.0,1.250844]
[1755181875176,1.27577701,119020.0,119010.0,0.92432903]
[1755181875674,0.2130161,119010.0,119000.0,0.0839872]
[1755181875882,0.5738161,119010.0,119000.0,1.0831972]
[1755181876269,1.27578401,119010.0,119000.0,0.9960672]
[1755181876571,0.5738161,119010.0,119000.0,0.9960672]
[1755181877170,0.2130161,119010.0,119000.0,1.0359772]
[1755181877476,0.2130161,119010.0,119000.0,1.0841972]
[1755181877775,0.7417779,119020.0,119010.0,0.1711165]
[1755181877968,0.5287625,119020.0,119010.0,0.1711165]
[1755181878174,0.6577925,119020.0,119010.0,0.1711165]
[1755181878376,0.6205825,119020.0,119010.0,0.1711165]
[1755181879471,0.6577925,119020.0,119010.0,0.1711165]
[1755181879674,0.09182,119020.0,119010.0,0.1711165]
[1755181879980,0.04711,119020.0,119010.0,0.1711165]
[1755181880379,0.04711,119020.0,119010.0,0.5319165]
[1755181880579,0.6577777,119030.0,119020.0,0.1711095]
[1755181880883,0.6577777,119030.0,119020.0,0.91648]
[1755181881180,0.6577777,119030.0,119010.0,0.1679691]
[1755181881181,0.2130098,119020.0,119010.0,0.1679691]
[1755181881373,0.5738098,119020.0,119010.0,1.0845291]
[1755181881574,0.5738098,119020.0,119010.0,1.1716591]
[1755181882173,0.2130098,119020.0,119010.0,1.1244391]
[1755181882783,0.2130098,119020.0,119010.0,1.0845291]
[1755181882980,0.1310898,119020.0,119010.0,1.1716591]
[1755181883280,0.2130098,119020.0,119010.0,1.1244391]
[1755181883480,0.2130098,119020.0,119010.0,1.1716591]
[1755181884281,0.2130098,119020.0,118990.0,0.4815778]
[1755181884282,0.0839939,119000.0,118990.0,0.4815778]
[1755181884476,0.1747509,118990.0,118980.0,0.59595614]
[1755181884684,0.2119209,118990.0,118980.0,1.11320864]
[1755181884877,0.2119209,118990.0,118980.0,1.11320854]
[1755181885276,0.5727209,118990.0,118980.0,1.11320854]
[1755181885572,0.2119209,118990.0,118980.0,1.51999854]
[1755181885771,0.5727209,118990.0,118980.0,1.15919854]
[1755181885970,0.5727209,118990.0,118980.0,0.23515854]
[1755181886176,0.5727209,118990.0,118980.0,1.11360854]
[1755181886683,0.5727209,118990.0,118980.0,1.15931854]
[1755181886979,0.2119209,118990.0,118980.0,1.52003854]
[1755181887473,0.2119209,118990.0,118980.0,1.51996317]
[1755181887670,0.4447939,119000.0,118990.0,0.1667709]
[1755181887874,0.7035258,119010.0,119000.0,0.0839938]
[1755181888071,0.7406958,119010.0,119000.0,1.0910438]
[1755181888271,0.656703,119010.0,119000.0,1.0910438]
[1755181888486,0.295903,119010.0,119000.0,1.0910438]
[1755181888780,0.656703,119010.0,119000.0,1.0910438]
[1755181888976,0.2119102,119010.0,119000.0,1.0910438]
[1755181889280,0.5659334,119020.0,119000.0,1.2590271]
[1755181889477,0.2118999,119020.0,119010.0,0.1667568]
[1755181889877,0.5726999,119020.0,119010.0,0.1667568]
[1755181890178,0.6566865,119020.0,119000.0,0.2887571]
[1755181890379,0.3608,119020.0,119010.0,1.0943968]
[1755181890580,0.3608,119040.0,119030.0,0.1667427]
[1755181890780,0.5726808,119050.0,119040.0,0.0839656]
[1755181890983,0.59462095,119050.0,119040.0,1.0426456]
[1755181891282,0.51066015,119050.0,119040.0,1.04410239]
[1755181891580,0.59461875,119050.0,119040.0,1.12687239]
[1755181891791,0.5726786,119050.0,119040.0,1.08088239]
[1755181891972,0.48872,119050.0,119040.0,1.08088239]
[1755181892179,0.5726786,119050.0,119040.0,1.08088239]
[1755181892574,0.5726786,119050.0,119040.0,1.08921983]
[1755181892984,0.5726786,119050.0,119040.0,1.12079944]
[1755181893380,1.14868262,119050.0,119040.0,1.03286446]
[1755181893880,1.14868262,119050.0,119040.0,1.11683036]
[1755181894084,1.31668262,119050.0,119040.0,0.00154485]
[1755181894280,1.31668262,119050.0,119000.0,0.3616]
[1755181894281,0.08398,119020.0,119000.0,0.2139721]
[1755181894482,0.6566857,119020.0,119010.0,1.0478671]
[1755181894784,0.6566857,119020.0,119010.0,0.0084227]
[1755181895087,0.2119071,119010.0,119000.0,0.2507521]
[1755181895385,1.14791112,119010.0,119000.0,0.03678]
[1755181895582,0.7406927,119010.0,119000.0,1.0469541]
[1755181895882,0.4447871,119010.0,119000.0,1.1297241]
[1755181896087,0.3608,119010.0,119000.0,1.2149384]
[1755181896284,0.09075,119020.0,119010.0,0.0839871]
[1755181896586,0.740653,119030.0,119020.0,0.08398]
[1755181896777,0.535523,119030.0,119020.0,0.16675]
[1755181896977,0.174723,119030.0,119020.0,0.16675]
[1755181897681,0.083973,119030.0,119020.0,0.16675]
[1755181897883,0.2118993,119020.0,119010.0,0.17506286]
[1755181898082,0.2118993,119020.0,119010.0,0.12907286]
[1755181898280,0.5726993,119020.0,119010.0,0.00830966]
[1755181898487,1.14790332,119020.0,119010.0,0.96736]
[1755181898686,0.5726993,119020.0,119010.0,0.96736]
[1755181899185,1.14790332,119020.0,119010.0,0.97569928]
[1755181899488,0.5726993,119020.0,119010.0,1.05968638]
[1755181899786,0.12792,119020.0,119010.0,1.14245638]
[1755181899987,0.5727,119020.0,119010.0,1.14245638]
[1755181900178,0.48872,119020.0,119010.0,1.14245638]
[1755181900373,0.5287527,119030.0,119010.0,1.26443648]
[1755181900687,0.48872,119030.0,119020.0,0.1667501]
[1755181901281,0.572693,119030.0,119020.0,0.1667501]
[1755181901794,0.48872,119030.0,119020.0,0.1667501]
[1755181901976,0.45155,119030.0,119020.0,0.1667501]
[1755181902282,0.45155,119040.0,119020.0,0.2887161]
[1755181902489,0.11283946,119040.0,119030.0,1.494383]
[1755181902879,0.19680546,119040.0,119030.0,1.494383]
[1755181903087,0.23397546,119040.0,119030.0,1.087593]
[1755181903382,0.23397546,119040.0,119030.0,1.050813]
[1755181903383,0.59477546,119040.0,119030.0,1.050813]
[1755181903586,0.19680546,119040.0,119030.0,1.133583]
[1755181903786,0.06806946,119040.0,119030.0,1.133583]
[1755181903983,0.02208946,119040.0,119030.0,1.133583]
[1755181904186,0.02208946,119040.0,119030.0,1.134583]
[1755181905185,0.40678,119050.0,119040.0,0.083966]
[1755181905384,0.5575955,119050.0,119040.0,0.166736]
[1755181905784,0.5947655,119050.0,119040.0,0.166736]
[1755181906675,0.5947655,119050.0,119040.0,0.083966]
[1755181906985,1.16996952,119050.0,119040.0,0.120746]
[1755181907193,0.5947655,119050.0,119040.0,0.120746]
[1755181908292,0.5947655,119050.0,119040.0,0.18733907]
[1755181908693,1.28927386,119050.0,119040.0,0.18733907]
[1755181908892,0.5947655,119050.0,119040.0,0.18733907]
[1755181909288,1.28927386,119050.0,119040.0,0.18733907]
[1755181910186,0.5947655,119050.0,119040.0,0.18733907]
[1755181910387,0.5947655,119050.0,119040.0,1.11495907]
[1755181911291,0.5947655,119050.0,119040.0,1.19911281]
[1755181911686,0.612673,119060.0,119040.0,1.72864041]
[1755181911687,0.1299328,119060.0,119040.0,1.72864041]
[1755181911887,0.1968052,119060.0,119050.0,0.527529]
[1755181912095,0.1520352,119060.0,119050.0,0.527529]
[1755181912297,0.1060552,119060.0,119050.0,0.16811274]
[1755181912487,0.2339752,119060.0,119050.0,0.16811274]
[1755181912687,0.5947752,119060.0,119050.0,0.16811274]
[1755181913387,0.0221033,119060.0,119050.0,0.16811274]
[1755181913586,0.0221033,119060.0,119050.0,0.52891274]
[1755181913798,0.0221033,119060.0,119050.0,0.52971274]
[1755181913988,0.0221033,119060.0,119050.0,0.52991274]
[1755181914291,0.2586439,119070.0,119060.0,0.0839519]
[1755181914486,0.11284799,119070.0,119060.0,0.5290319]
[1755181914696,0.19679289,119070.0,119060.0,0.5290319]
[1755181914883,0.19679289,119070.0,119060.0,1.5031919]
[1755181915087,0.02209799,119070.0,119060.0,1.5031919]
[1755181915296,0.02209799,119070.0,119060.0,1.50457564]
[1755181915796,0.2127079,119080.0,119070.0,0.1682253]
[1755181916094,0.23480709,119080.0,119070.0,0.1682253]
[1755181916292,0.15086919,119080.0,119070.0,0.16960904]
[1755181916494,0.02209919,119080.0,119070.0,0.8649174]
[1755181916690,0.02209919,119080.0,119070.0,1.2257174]
[1755181917084,0.02209919,119080.0,119070.0,0.53120904]
[1755181918297,0.02209919,119080.0,119070.0,0.5298253]
[1755181918506,0.02209919,119080.0,119070.0,0.5310064]
[1755181919095,0.02209919,119080.0,119070.0,0.53155897]
[1755181920095,0.02209919,119080.0,119070.0,1.22606733]
[1755181920298,0.02209919,119080.0,119070.0,0.53155897]
[1755181922596,0.02209919,119080.0,119070.0,1.22606733]
[1755181922905,0.02209919,119080.0,119070.0,0.53155897]
[1755181924298,0.06985919,119080.0,119070.0,0.53355897]
[1755181924605,0.02209919,119080.0,119070.0,0.53369741]
[1755181925305,0.02209919,119080.0,119070.0,0.53383585]
[1755181925808,0.02209919,119080.0,119070.0,0.53397438]
[1755181926104,0.06985919,119080.0,119070.0,0.53411291]
[1755181926502,0.02209919,119080.0,119070.0,0.53411291]
[1755181927106,0.02209919,119080.0,119070.0,1.22862127]
[1755181927302,0.02209919,119080.0,119070.0,0.53411291]
[1755181927501,0.02209919,119080.0,119070.0,1.22862127]
[1755181927701,1.43508676,119100.0,119090.0,0.0839312]
[1755181928001,1.43508676,119100.0,119090.0,1.0842112]
[1755181928207,0.20856693,119090.0,119080.0,0.2059164]
[1755181928406,1.26723996,119090.0,119080.0,1.2069964]
[1755181928706,0.4888,119090.0,119080.0,1.2532264]
[1755181929004,0.128,119090.0,119080.0,1.6140264]
[1755181929310,1.13922906,119110.0,119100.0,0.0839239]
[1755181929494,1.13922906,119110.0,119100.0,1.09254381]
[1755181929695,1.26722906,119110.0,119100.0,1.09254381]
[1755181930002,0.128,119110.0,119100.0,1.19733455]
[1755181930199,0.128,119110.0,119100.0,1.24356455]
[1755181932397,1.30705216,119120.0,119110.0,0.1681976]
[1755181932398,0.128,119120.0,119110.0,0.1681976]
[1755181932708,0.00028,119130.0,119120.0,0.1681905]
[1755181933509,0.00028,119130.0,119120.0,1.5296305]
[1755181933705,0.0841835,119130.0,119120.0,1.1688305]
[1755181934012,0.2121835,119130.0,119120.0,1.1688305]
[1755181934207,0.5729835,119130.0,119120.0,1.0845105]
[1755181934401,0.5729835,119130.0,119110.0,0.6125484]
[1755181934402,0.1203105,119120.0,119110.0,0.2058808]
[1755181934598,1.26721886,119120.0,119110.0,0.0839132]
[1755181934802,0.2119179,119110.0,119100.0,0.41093445]
[1755181935107,0.2119179,119110.0,119100.0,1.41021445]
[1755181935308,0.2119179,119110.0,119100.0,0.36470445]
[1755181935508,0.2119179,119110.0,119100.0,1.41241445]
[1755181935509,0.128,119110.0,119100.0,1.41241445]
[1755181935904,0.36108,119130.0,119110.0,0.2517493]
[1755181936105,0.48908,119130.0,119120.0,1.1228409]
[1755181936312,0.48908,119130.0,119120.0,1.1690709]
[1755181936607,0.36108,119130.0,119120.0,1.1690709]
[1755181936814,0.00028,119130.0,119120.0,1.5298709]
[1755181937313,0.3608,119170.0,119160.0,0.0838827]
[1755181937613,0.59341643,119170.0,119160.0,1.1258127]
[1755181937819,0.14874073,119170.0,119160.0,1.1258127]
[1755181938112,0.23261643,119170.0,119160.0,1.1258127]
[1755181938314,0.14874073,119170.0,119160.0,1.1258127]
[1755181938509,0.23261643,119170.0,119160.0,1.1258127]
[1755181938709,0.23261643,119170.0,119160.0,1.13423334]
[1755181939015,0.14874073,119170.0,119160.0,1.13423334]
[1755181939212,0.14874073,119170.0,119160.0,1.18046334]
[1755181939415,0.14874073,119170.0,119160.0,1.13423334]
[1755181939611,0.23261643,119170.0,119160.0,1.09646334]
[1755181939805,0.59341643,119170.0,119160.0,1.09646334]
[1755181940013,0.14874073,119170.0,119160.0,1.13423334]
[1755181940205,0.14874073,119170.0,119160.0,1.18046334]
[1755181940410,0.11234073,119170.0,119160.0,1.24753283]
[1755181940610,0.02074073,119170.0,119160.0,1.24753283]
[1755181940809,0.02074073,119170.0,119160.0,1.25978869]
[1755181941023,0.02074073,119170.0,119160.0,1.26106849]
[1755181941209,0.02074073,119170.0,119160.0,1.62186849]
[1755181941404,0.0916,119180.0,119160.0,1.78962859]
[1755181941609,0.11228666,119180.0,119170.0,0.5286757]
[1755181942116,0.11228666,119180.0,119170.0,0.5299555]
[1755181942511,0.14948666,119180.0,119170.0,0.3620798]
[1755181942713,0.08240704,119170.0,119160.0,1.23213203]
[1755181942909,0.11228666,119170.0,119160.0,1.23213203]
[1755181943213,0.10456226,119170.0,119160.0,1.31613203]
[1755181943412,0.11228666,119170.0,119160.0,1.31613203]
[1755181943720,0.02068666,119170.0,119160.0,1.67693203]
[1755181944019,0.5727916,119190.0,119180.0,0.1668186]
[1755181944208,0.2949882,119180.0,119170.0,0.03624]
[1755181944408,0.2949882,119180.0,119160.0,0.24231813]
[1755181944409,0.2111156,119170.0,119160.0,0.24231813]
[1755181944612,0.23172833,119170.0,119160.0,1.32299813]
[1755181944919,0.19519833,119170.0,119160.0,1.32299813]
[1755181945212,1.28703669,119170.0,119160.0,0.11273013]
[1755181945411,0.59252833,119170.0,119160.0,1.15825013]
[1755181945808,1.28783669,119170.0,119160.0,0.07649013]
[1755181946012,1.28783669,119170.0,119160.0,1.14966949]
[1755181946413,1.28783669,119170.0,119130.0,0.2040413]
[1755181946414,0.2111368,119140.0,119130.0,0.2040413]
[1755181946613,0.90564516,119140.0,119130.0,1.2863613]
[1755181946918,0.2111368,119140.0,119130.0,1.35348527]
[1755181947113,0.12724,119140.0,119130.0,1.35348527]
[1755181947417,0.90644516,119140.0,119130.0,0.02041397]
[1755181947810,1.26724516,119140.0,119130.0,0.01221247]
[1755181948110,0.2111438,119130.0,119120.0,0.1678156]
[1755181948311,0.48804,119130.0,119120.0,0.17617366]
[1755181948530,0.48804,119130.0,119120.0,0.25912366]
[1755181948817,0.43936,119140.0,119120.0,0.29632266]
[1755181949009,0.3608,119140.0,119130.0,0.1668538]
[1755181949414,0.48804,119150.0,119140.0,0.1668468]
[1755181949707,0.43011367,119150.0,119140.0,1.2495668]
[1755181949911,0.5719227,119160.0,119150.0,0.1201297]
[1755181950113,0.59255552,119160.0,119150.0,0.1668397]
[1755181950317,0.2111297,119150.0,119140.0,1.1658164]
[1755181950612,1.26643806,119150.0,119140.0,1.1658164]
[1755181950808,1.26643806,119150.0,119140.0,1.08192]
[1755181951013,0.2111438,119130.0,119120.0,1.17538896]
[1755181951209,1.26645216,119130.0,119120.0,0.09226896]
[1755181951410,1.26645216,119130.0,119120.0,0.00835806]
[1755181951617,0.1691279,119110.0,119100.0,0.06674074]
[1755181951808,1.26646626,119110.0,119100.0,0.083925]
[1755181952014,0.132605,119100.0,119090.0,1.34589303]
[1755181952208,0.571965,119100.0,119090.0,1.34589303]
[1755181952410,1.26647336,119100.0,119090.0,0.00836823]
[1755181952622,0.12724,119080.0,119070.0,1.3741898]
[1755181952815,0.12724,119080.0,119070.0,1.4208998]
[1755181953117,0.535442,119090.0,119080.0,0.1668891]
[1755181953422,0.2111791,119080.0,119070.0,1.16240286]
[1755181953624,0.5719791,119080.0,119070.0,1.16240286]
[1755181953815,1.26648746,119080.0,119070.0,1.24634896]
[1755181954122,0.5719791,119080.0,119070.0,1.09451048]
[1755181954322,0.5719791,119080.0,119070.0,1.17845658]
[1755181954518,0.4934191,119080.0,119070.0,1.21469658]
[1755181954817,0.5719791,119080.0,119070.0,1.26140658]
[1755181955116,1.26648746,119080.0,119070.0,1.18446048]
[1755181955317,2.54771836,119080.0,119040.0,0.03624]
[1755181955521,0.2112073,119040.0,119030.0,0.03644]
[1755181955714,1.26651566,119040.0,119030.0,0.0002]
[1755181955913,1.26651566,119040.0,118990.0,0.04671]
[1755181955914,0.0839955,119000.0,118990.0,0.04671]
[1755181956118,0.0839955,119000.0,118990.0,0.08295]
[1755181956319,0.3608,119000.0,118990.0,0.24979687]
[1755181956517,0.4934684,119010.0,119000.0,0.08295]
[1755181956726,0.4934684,119010.0,118990.0,0.25084887]
[1755181956727,0.1747055,119000.0,118990.0,0.09135976]
[1755181956917,0.09071,119000.0,118990.0,0.24138711]
[1755181957117,0.04868,119000.0,118990.0,0.1669525]
[1755181957424,0.04868,119000.0,118990.0,0.17506924]
[1755181957930,0.1326755,119000.0,118990.0,0.17506924]
[1755181958225,0.04868,119000.0,118990.0,0.17506924]
[1755181958628,1.26654386,119000.0,118990.0,0.13035924]
[1755181958920,0.5720355,119000.0,118990.0,0.20479385]
[1755181959313,0.48804,119000.0,118990.0,0.13035924]
[1755181959515,0.5720355,119000.0,118990.0,0.01011674]
[1755181959723,1.0633756,119000.0,118990.0,0.09411924]
[1755181959913,0.12724,119000.0,118990.0,0.09411924]
[1755181960116,0.3608,119020.0,119010.0,0.03624]
[1755181960417,0.09071,119030.0,119020.0,0.1669314]
[1755181960617,0.40948,119040.0,119030.0,0.1669243]
[1755181960822,0.48804,119050.0,119040.0,0.1669173]
[1755181961020,0.45151,119050.0,119040.0,0.1677173]
[1755181961224,0.3608,119060.0,119050.0,0.1202002]
[1755181961424,0.3608,119060.0,119050.0,0.1669102]
[1755181961620,0.48804,119060.0,119050.0,0.1202002]
[1755181961822,0.5719932,119060.0,119050.0,0.0839602]
[1755181962224,0.08521,119050.0,119040.0,0.6966651]
[1755181962417,0.2112002,119050.0,119040.0,0.2603624]
[1755181962618,0.12724,119050.0,119040.0,0.2603624]
[1755181963731,0.09071,119050.0,119040.0,0.3433124]
[1755181964026,0.45151,119060.0,119050.0,0.1202002]
[1755181964232,0.48804,119060.0,119050.0,0.1202002]
[1755181964926,0.45151,119060.0,119050.0,0.1669102]
[1755181965134,0.40948,119060.0,119050.0,0.1669102]
[1755181965433,0.45151,119070.0,119060.0,0.1201932]
[1755181965630,0.40948,119070.0,119060.0,0.1669032]
[1755181965828,0.04868,119070.0,119060.0,0.1669032]